bitfinex-derivatives/quotes_SOLF0:USTF0_20240905
["timestamp","ask_amount","ask_price","bid_price","bid_amount"]
[1725506836002,0.0509975,131.81,131.79,0.04566613]
[1725506838714,3.8440975,131.81,131.79,0.04566613]
[1725506838913,0.0509975,131.81,131.79,3.83936613]
[1725506839807,0.0509975,131.81,131.8,3.7934]
[1725506840408,3.7921,131.85,131.79,26.24]
[1725506840615,3.7921,131.85,131.8,1.3271]
[1725506841108,3.7917,131.86,131.81,26.24]
[1725506841411,0.05694132,131.85,131.82,0.04792775]
[1725506841611,0.05694132,131.85,131.82,3.84052775]
[1725506841913,0.05694132,131.85,131.82,0.04792775]
[1725506842110,0.05694132,131.85,131.84,3.7922]
[1725506846912,0.05694132,131.85,131.82,1.42752775]
[1725506847518,0.05694132,131.85,131.82,5.22022775]
[1725506847719,0.05694132,131.85,131.82,0.04792775]
[1725506849416,3.84904132,131.85,131.82,0.04792775]
[1725506851919,0.05694132,131.85,131.82,0.04792775]
[1725506852412,3.7925,131.83,131.82,0.04792775]
[1725506859120,0.05694132,131.85,131.82,0.04792775]
[1725506860423,0.05694132,131.85,131.82,3.84052775]
[1725506860926,0.05694132,131.85,131.84,3.7922]
[1725506861328,0.05694132,131.85,131.82,0.04792775]
[1725506862524,0.05694132,131.85,131.84,3.7922]
[1725506867433,0.05694132,131.85,131.83,3.7924]
[1725506870030,3.84894132,131.85,131.82,3.84062775]
[1725506870625,0.05694132,131.85,131.83,3.7924]
[1725506871325,0.05694132,131.85,131.84,3.7922]
[1725506880431,0.05694132,131.85,131.83,3.7924]
[1725506880632,0.05694132,131.85,131.82,0.04792775]
[1725506880633,10.53694132,131.85,131.82,0.04792775]
[1725506880830,3.7925,131.83,131.82,0.04792775]
[1725506881037,10.53694132,131.85,131.82,0.04792775]
[1725506881434,0.05694132,131.85,131.82,0.04792775]
[1725506881932,3.84894132,131.85,131.82,0.04792775]
[1725506883932,3.7923,131.84,131.82,0.04792775]
[1725506885035,0.05694132,131.85,131.64,19.45275223]
[1725506885240,26.22,131.84,131.74,26.22]
[1725506885437,26.22,131.84,131.75,3.7621396]
[1725506885937,26.22,131.84,131.77,3.7942]
[1725506886134,0.05730291,131.82,131.79,0.04873588]
[1725506886537,3.7931,131.81,131.79,0.04873588]
[1725506886737,0.05730291,131.82,131.79,0.04873588]
[1725506887835,0.05730291,131.82,131.79,3.84223588]
[1725506889236,0.05730291,131.82,131.79,0.04873588]
[1725506889838,3.7933,131.81,131.79,0.04873588]
[1725506891344,3.85030291,131.82,131.79,0.04873588]
[1725506892241,3.85030291,131.82,131.79,3.84233588]
[1725506892741,0.05730291,131.82,131.8,3.7934]
[1725506893537,0.05730291,131.82,131.81,3.7931]
[1725506895750,0.05730291,131.82,131.8,5.0941]
[1725506896655,0.05730291,131.82,131.81,3.7931]
[1725506898155,104.220645,131.89,131.8,28.9325]
[1725506898351,108.09300802,131.89,131.81,1.4024]
[1725506898551,3.7916,131.87,131.83,3.7923]
[1725506899155,0.04950366,131.86,131.84,0.05591824]
[1725506900751,0.04950366,131.86,131.84,3.84801824]
[1725506901553,0.04950366,131.86,131.84,0.05591824]
[1725506903355,3.84120366,131.86,131.84,0.05591824]
[1725506906860,0.04950366,131.86,131.84,3.84811824]
[1725506908963,3.84120366,131.86,131.84,0.05591824]
[1725506910869,10.53950366,131.86,131.84,0.05591824]
[1725506911658,10.49,131.85,131.84,0.05591824]
[1725506912059,14.2819,131.85,131.84,0.05591824]
[1725506912461,10.49,131.85,131.79,3.7936]
[1725506913565,0.04985507,131.83,131.81,0.05012055]
[1725506914475,3.84255507,131.83,131.81,0.05012055]
[1725506915372,0.04985507,131.83,131.81,0.05012055]
[1725506915565,0.04985507,131.83,131.81,10.54012055]
[1725506916766,0.04985507,131.83,131.82,3.7928]
[1725506920971,0.04985507,131.83,131.82,18.02218323]
[1725506926279,0.04985507,131.83,131.82,3.7928]
[1725506928572,0.04985507,131.83,131.81,0.05012055]
[1725506929182,0.04985507,131.83,131.81,3.84322055]
[1725506930881,0.04985507,131.83,131.82,3.7928]
[1725506932479,0.04985507,131.83,131.82,18.05897773]
[1725506932683,114.1832747,132.09,131.82,16.96077773]
[1725506932684,1.3226,131.94,131.82,16.96077773]
[1725506932981,3.7891,131.95,131.9,10.49]
[1725506933192,3.7891,131.95,131.91,3.7901]
[1725506933682,0.04797085,131.94,131.92,0.0533604]
[1725506934279,0.04797085,131.94,131.92,3.8432604]
[1725506934778,0.04797085,131.94,131.92,0.0533604]
[1725506935879,10.53797085,131.94,131.92,0.0533604]
[1725506936080,0.04797085,131.94,131.92,0.0533604]
[1725506936482,3.7896,131.93,131.92,0.0533604]
[1725506938986,0.04797085,131.94,131.92,0.0533604]
[1725506938987,3.83737085,131.94,131.92,0.0533604]
[1725506939280,0.04797085,131.94,131.92,0.0533604]
[1725506939982,26.23797085,131.94,131.83,1.4166]
[1725506940186,3.7907,131.9,131.83,27.6066]
[1725506940390,1.4114,131.93,131.83,27.6066]
[1725506940582,26.19,131.9,131.82,1.3484]
[1725506940788,26.19,131.9,131.81,1.3788]
[1725506940789,3.73815651,131.89,131.81,1.3788]
[1725506941086,0.05179325,131.86,131.84,0.04661522]
[1725506942484,3.84349325,131.86,131.84,0.04661522]
[1725506942679,0.05179325,131.86,131.84,0.04661522]
[1725506943085,3.7919,131.85,131.84,0.04661522]
[1725506944986,26.19,131.86,131.77,2.7668]
[1725506945287,1.4032,131.85,131.77,1.3792]
[1725506945688,3.793,131.82,131.77,5.1733]
[1725506946188,0.05225488,131.81,131.77,5.1733]
[1725506946784,0.05225488,131.81,131.78,3.7939]
[1725506952995,0.05225488,131.81,131.77,1.3792]
[1725506953191,0.05225488,131.81,131.78,26.19]
[1725506954293,0.05225488,131.81,131.79,3.7934]
[1725506955789,0.05225488,131.81,131.8,3.7934]
[1725506958892,3.7921,131.85,131.82,3.7927]
[1725506960007,3.84049325,131.85,131.82,3.84495488]
[1725506963800,3.84049325,131.85,131.82,0.05225488]
[1725506969204,3.84049325,131.85,131.82,3.84505488]
[1725506974205,0.04839325,131.85,131.82,0.05225488]
[1725506974403,10.49,131.83,131.62,11.85821142]
[1725506974605,2.7179,131.82,131.72,10.49]
[1725506974809,10.49,131.79,131.72,14.2855]
[1725506975005,7.5502698,131.78,131.72,18.04801896]
[1725506975201,3.7942,131.78,131.72,14.2855]
[1725506975404,0.04873263,131.76,131.72,14.2855]
[1725506977106,0.04873263,131.76,131.74,10.49]
[1725506981203,0.04873263,131.76,131.74,14.2851]
[1725506981409,0.04873263,131.76,131.74,10.49]
[1725506981607,0.04873263,131.76,131.72,10.49]
[1725506981809,0.04873263,131.76,131.72,14.2856]
[1725506982011,0.04873263,131.76,131.72,3.7956]
[1725506983612,0.04873263,131.76,131.73,3.7954]
[1725506987315,0.04873263,131.76,131.74,10.49]
[1725506987924,0.04873263,131.76,131.75,3.7948]
[1725506989726,0.04873263,131.76,131.69,2.7705]
[1725506990226,0.04873263,131.76,131.74,3.7949]
[1725506990525,0.04873263,131.76,131.73,10.49]
[1725506990926,0.04873263,131.76,131.73,14.22292457]
[1725506991226,0.04873263,131.76,131.74,3.7949]
[1725506995134,0.04873263,131.76,131.73,14.22292457]
[1725506995828,0.04873263,131.76,131.74,3.7949]
[1725507000633,0.04873263,131.76,131.74,14.2849]
[1725507000833,0.04873263,131.76,131.69,2.7705]
[1725507001137,0.04873263,131.76,131.71,10.49]
[1725507001532,3.84343263,131.76,131.73,3.7954]
[1725507003633,0.04873263,131.76,131.73,3.7954]
[1725507003840,0.04873263,131.76,131.74,3.7951]
[1725507005040,0.04873263,131.76,131.75,10.49]
[1725507005236,10.49,131.85,131.75,10.49]
[1725507005439,10.49,131.86,131.79,10.49]
[1725507005637,10.49,131.86,131.8,10.49]
[1725507005940,10.49,131.86,131.8,14.2789943]
[1725507006137,10.49,131.88,131.82,10.49]
[1725507006336,0.05364795,131.86,131.84,0.04873263]
[1725507007638,0.05364795,131.86,131.84,10.53873263]
[1725507008532,0.05364795,131.86,131.84,0.04873263]
[1725507013054,0.05364795,131.86,131.84,10.53873263]
[1725507013655,0.05364795,131.86,131.84,3.84093263]
[1725507016954,0.05364795,131.86,131.84,0.04873263]
[1725507017157,10.54364795,131.86,131.84,0.04873263]
[1725507017349,7.49961597,131.85,131.84,0.04873263]
[1725507017550,10.49,131.85,131.77,11.8752]
[1725507017751,10.49,131.83,131.77,11.8752]
[1725507017950,10.49,131.83,131.77,14.2841]
[1725507018152,10.49,131.82,131.74,2.7959]
[1725507018454,10.49,131.82,131.75,10.49]
[1725507018655,0.0500355,131.8,131.75,10.49]
[1725507020158,3.8434355,131.8,131.76,3.7945]
[1725507020651,0.0500355,131.8,131.77,3.7941]
[1725507021556,0.0500355,131.8,131.78,3.7939]
[1725507021760,0.0500355,131.8,131.79,10.49]
[1725507023464,0.0500355,131.8,131.79,14.2837]
[1725507035861,0.0500355,131.8,131.74,2.7959]
[1725507036062,3.8434355,131.8,131.77,10.49]
[1725507036256,0.0500355,131.8,131.77,10.49]
[1725507036757,0.0500355,131.8,131.77,14.284]
[1725507038260,0.0500355,131.8,131.79,10.49]
[1725507039161,0.0500355,131.8,131.79,18.07696047]
[1725507040759,0.0500355,131.8,131.79,14.2837]
[1725507041364,3.7921,131.85,131.81,3.7929]
[1725507041662,3.7921,131.85,131.81,14.2829]
[1725507042162,3.7921,131.85,131.82,3.7927]
[1725507042364,3.84810182,131.85,131.82,3.84271204]
[1725507042959,3.84810182,131.85,131.83,10.49]
[1725507043166,0.05600182,131.85,131.83,14.2824]
[1725507046266,0.05600182,131.85,131.84,3.7922]
[1725507046467,0.05600182,131.85,131.84,10.49]
[1725507049169,3.84790182,131.85,131.83,10.49]
[1725507050566,0.05600182,131.85,131.83,14.2824]
[1725507054063,0.05600182,131.85,131.84,3.7922]
[1725507055466,0.05600182,131.85,131.84,14.2822]
[1725507055866,3.7909,131.89,131.86,3.7916]
[1725507056968,3.84348744,131.89,131.86,3.8405808]
[1725507057569,0.05258744,131.89,131.87,3.7914]
[1725507059867,0.05258744,131.89,131.87,18.04145158]
[1725507060073,0.05258744,131.89,131.88,3.7911]
[1725507060469,0.05258744,131.89,131.86,0.0489808]
[1725507061069,3.84358744,131.89,131.86,0.0489808]
[1725507061269,0.05258744,131.89,131.86,10.5389808]
[1725507061473,0.05258744,131.89,131.87,3.7804323]
[1725507061770,0.05258744,131.89,131.87,3.7911]
[1725507061967,0.05258744,131.89,131.87,10.49]
[1725507062373,0.05258744,131.89,131.88,3.7911]
[1725507063077,0.05258744,131.89,131.88,14.2811]
[1725507064768,0.05258744,131.89,131.88,3.7911]
[1725507064972,0.05258744,131.89,131.87,19.37272089]
[1725507065668,0.05258744,131.89,131.88,3.7911]
[1725507066278,0.05258744,131.89,131.88,14.2811]
[1725507067874,0.05258744,131.89,131.87,1.3638]
[1725507068175,0.05258744,131.89,131.86,14.40756349]
[1725507068375,0.05258744,131.89,131.86,10.5389808]
[1725507068673,3.84348744,131.89,131.86,10.5389808]
[1725507068874,0.05258744,131.89,131.86,0.0489808]
[1725507069877,3.7914,131.87,131.86,0.0489808]
[1725507071176,3.792,131.85,131.82,10.49]
[1725507072187,3.792,131.85,131.82,10.54225514]
[1725507072384,0.05827908,131.85,131.82,14.33485514]
[1725507073791,0.05827908,131.85,131.83,3.7924]
[1725507075285,0.05827908,131.85,131.84,10.49]
[1725507078187,0.05827908,131.85,131.82,14.33495514]
[1725507079290,3.85037908,131.85,131.82,14.33495514]
[1725507079687,0.05827908,131.85,131.83,3.7925]
[1725507080893,3.85027908,131.85,131.82,14.33495514]
[1725507086390,3.7925,131.83,131.82,0.05225514]
[1725507092704,3.7935,131.8,131.75,1.4059]
[1725507092901,10.49,131.83,131.75,1.4059]
[1725507093098,10.49,131.82,131.75,10.49]
[1725507093295,3.7939,131.79,131.75,10.49]
[1725507093695,0.04883379,131.78,131.75,10.49]
[1725507094399,0.04883379,131.78,131.76,3.7945]
[1725507095004,3.84283379,131.78,131.75,14.2848]
[1725507096197,3.84283379,131.78,131.72,1.3132]
[1725507096198,0.04883379,131.78,131.74,10.49]
[1725507096801,0.04883379,131.78,131.73,3.7952]
[1725507098411,3.7946,131.76,131.73,3.7952]
[1725507101412,3.7944,131.77,131.74,3.7951]
[1725507101608,0.053208,131.77,131.74,10.49]
[1725507103010,0.053208,131.77,131.75,10.49]
[1725507103613,0.053208,131.77,131.76,3.7945]
[1725507105514,0.053208,131.77,131.75,14.2847]
[1725507105914,0.053208,131.77,131.75,10.49]
[1725507106518,0.053208,131.77,131.74,10.49]
[1725507107420,0.053208,131.77,131.75,3.7947]
[1725507107720,0.053208,131.77,131.75,10.49]
[1725507108622,0.053208,131.77,131.76,3.7945]
[1725507110019,0.053208,131.77,131.75,3.7947]
[1725507110215,0.053208,131.77,131.73,11.8307]
[1725507110721,0.053208,131.77,131.74,3.7949]
[1725507110923,0.053208,131.77,131.72,11.8032]
[1725507111119,0.053208,131.77,131.73,3.7953]
[1725507111314,10.543208,131.77,131.7,10.49]
[1725507111517,3.795,131.75,131.7,10.49]
[1725507111716,0.04912396,131.74,131.7,10.49]
[1725507112320,0.04912396,131.74,131.71,3.7957]
[1725507112620,0.04912396,131.74,131.7,10.49]
[1725507113127,0.04912396,131.74,131.71,3.7958]
[1725507114721,0.04912396,131.74,131.7,10.49]
[1725507115026,0.04912396,131.74,131.67,13.3391]
[1725507115226,3.7962,131.71,131.67,13.3391]
[1725507115522,0.0487235,131.7,131.67,13.3391]
[1725507116323,0.0487235,131.7,131.67,17.1362]
[1725507117527,0.0487235,131.7,131.65,10.49]
[1725507117723,0.05655537,131.69,131.65,10.49]
[1725507118422,10.49,131.68,131.66,3.7973]
[1725507118627,10.49,131.67,131.56,3.70976313]
[1725507118826,10.49,131.65,131.57,4.0769]
[1725507119124,0.04979882,131.63,131.59,3.7994]
[1725507119322,0.04979882,131.63,131.57,7.8410507]
[1725507119323,3.82876004,131.63,131.57,18.3310507]
[1725507119728,0.04979882,131.63,131.46,7.6062]
[1725507119925,0.05074335,131.56,131.54,10.49]
[1725507120223,0.04864513,131.56,131.55,3.8004]
[1725507120429,0.04864513,131.56,131.55,10.49]
[1725507121027,0.04864513,131.56,131.51,10.49]
[1725507121231,10.49,131.52,131.39,75.31091575]
[1725507121421,0.05692725,131.47,131.44,10.49]
[1725507121731,0.05674783,131.47,131.4,4.0438]
[1725507121925,0.05674783,131.47,131.42,26.29]
[1725507122125,0.05674783,131.47,131.4,7.86962993]
[1725507122324,0.05674783,131.47,131.46,3.8032]
[1725507122629,1.3184,131.55,131.39,73.27374568]
[1725507122926,1.3184,131.55,131.47,26.29]
[1725507123131,1.3184,131.55,131.49,3.8021]
[1725507123634,0.05713583,131.53,131.51,0.05502682]
[1725507124523,0.05713583,131.53,131.51,3.85672682]
[1725507124732,0.05713583,131.53,131.51,0.05502682]
[1725507125733,27.7321,131.61,131.51,26.34502682]
[1725507125935,27.7321,131.61,131.51,26.29]
[1725507126127,3.7994,131.6,131.51,26.29]
[1725507126335,3.7994,131.6,131.55,3.8004]
[1725507126537,35.28946509,131.61,131.53,3.83108692]
[1725507126836,26.29,131.62,131.46,3.82880561]
[1725507127037,26.29,131.62,131.53,0.05487705]
[1725507127231,26.29,131.62,131.51,26.29]
[1725507127232,3.7991,131.61,131.51,26.29]
[1725507127437,0.04903855,131.59,131.56,0.05487114]
[1725507127636,0.04903855,131.59,131.56,3.85487114]
[1725507128135,0.04903855,131.59,131.57,3.7999]
[1725507128343,0.04903855,131.59,131.56,0.05487114]
[1725507128734,0.04903855,131.59,131.57,3.8]
[1725507128944,0.04903855,131.59,131.56,0.05487114]
[1725507129238,5.2235,131.67,131.62,3.7984]
[1725507129543,228.0,131.74,131.6,26.29]
[1725507129544,26.29,131.69,131.6,26.29]
[1725507129841,2.8036,131.7,131.61,26.29]
[1725507130227,0.05609333,131.67,131.64,0.05770289]
[1725507130435,0.05609333,131.67,131.65,3.7977]
[1725507130629,0.05609333,131.67,131.64,0.05770289]
[1725507131143,0.05609333,131.67,131.64,1.49790289]
[1725507131338,0.05609333,131.67,131.66,3.7974]
[1725507131738,26.29,131.74,131.65,26.29]
[1725507131937,32.79,131.76,131.65,32.79]
[1725507132242,32.79,131.76,131.66,1.4044]
[1725507132838,0.04876955,131.72,131.7,0.04868539]
[1725507133143,3.7943,131.77,131.72,3.7956]
[1725507133340,3.7943,131.77,131.73,0.05467596]
[1725507133534,0.04809518,131.76,131.73,0.05467596]
[1725507133940,3.84269518,131.76,131.73,0.05467596]
[1725507135044,0.04809518,131.76,131.73,3.85007596]
[1725507135848,0.04809518,131.76,131.74,3.7951]
[1725507136144,0.04809518,131.76,131.73,0.05467596]
[1725507136341,0.04809518,131.76,131.73,1.42827596]
[1725507136646,0.04809518,131.76,131.75,3.7948]
[1725507137143,1.3788,131.84,131.73,2.7557]
[1725507137348,1.3788,131.84,131.74,32.79]
[1725507137537,3.7925,131.83,131.74,32.79]
[1725507137737,1.3788,131.84,131.74,32.79]
[1725507138138,3.7926,131.83,131.79,3.7936]
[1725507138543,0.05175761,131.82,131.8,0.05449734]
[1725507138950,0.05175761,131.82,131.81,3.7931]
[1725507139748,0.05175761,131.82,131.8,3.84779734]
[1725507141044,0.05175761,131.82,131.8,0.05449734]
[1725507141549,0.05175761,131.82,131.81,3.7931]
[1725507142047,0.05175761,131.82,131.8,0.05449734]
[1725507142445,3.84455761,131.82,131.8,0.05449734]
[1725507142650,0.05175761,131.82,131.8,0.05449734]
[1725507144950,3.84475761,131.82,131.8,0.05449734]
[1725507146453,0.05175761,131.82,131.8,3.84789734]
[1725507146647,0.05175761,131.82,131.8,0.05449734]
[1725507148450,0.05175761,131.82,131.8,3.84789734]
[1725507150550,0.05175761,131.82,131.81,3.7931]
[1725507150947,3.7915,131.87,131.8,32.79]
[1725507151250,1.3852,131.89,131.8,32.79]
[1725507151459,3.7911,131.88,131.8,32.79]
[1725507151651,1.3852,131.89,131.82,32.79]
[1725507151846,1.3852,131.89,131.84,3.7922]
[1725507152053,0.05804077,131.88,131.85,0.05406725]
[1725507152455,0.05804077,131.88,131.85,3.84576725]
[1725507153855,3.84924077,131.88,131.85,3.84596725]
[1725507154054,3.84924077,131.88,131.85,0.05406725]
[1725507154255,0.05804077,131.88,131.85,0.05406725]
[1725507154458,0.05804077,131.88,131.86,3.7917]
[1725507154653,0.05804077,131.88,131.85,0.05406725]
[1725507155150,0.05804077,131.88,131.86,3.7917]
[1725507157452,0.05804077,131.88,131.85,3.84586725]
[1725507158264,0.05804077,131.88,131.86,3.7917]
[1725507158456,0.05804077,131.88,131.85,0.05406725]
[1725507158863,0.05804077,131.88,131.87,3.7914]
[1725507159060,0.05804077,131.88,131.85,0.05406725]
[1725507159262,0.05804077,131.88,131.86,3.7915]
[1725507160063,0.05804077,131.88,131.87,3.7914]
[1725507160665,0.05804077,131.88,131.86,3.7915]
[1725507161763,0.05804077,131.88,131.85,3.84596725]
[1725507163161,0.05804077,131.88,131.86,3.7914]
[1725507163366,0.05804077,131.88,131.85,0.05406725]
[1725507163764,0.05804077,131.88,131.86,3.7917]
[1725507165066,1.4156,131.95,131.86,32.79]
[1725507165562,1.4156,131.95,131.87,2.717]
[1725507165770,3.7898,131.93,131.89,3.7905]
[1725507166165,0.05199791,131.92,131.9,0.05846167]
[1725507166764,0.05199791,131.92,131.9,3.84886167]
[1725507169869,0.05199791,131.92,131.91,3.7902]
[1725507172071,2.704,132.0,131.9,26.22]
[1725507172274,2.704,132.0,131.93,26.22]
[1725507172776,2.704,132.0,131.93,30.0095]
[1725507173274,0.0540628,131.98,131.95,0.05090774]
[1725507173974,3.8424628,131.98,131.95,0.05090774]
[1725507174377,3.7885,131.97,131.95,0.05090774]
[1725507175573,3.8422628,131.98,131.95,0.05090774]
[1725507176579,3.7885,131.97,131.95,0.05090774]
[1725507177369,3.7888,131.96,131.95,0.05090774]
[1725507178277,3.7886,131.97,131.95,0.05090774]
[1725507178973,3.7888,131.96,131.95,0.05090774]
[1725507180479,3.7887,131.97,131.95,0.05090774]
[1725507180878,3.7888,131.96,131.95,0.05090774]
[1725507183885,3.7886,131.97,131.95,0.05090774]
[1725507184578,3.8423628,131.98,131.95,0.05090774]
[1725507184779,0.0540628,131.98,131.96,26.22]
[1725507185474,0.0540628,131.98,131.95,0.05090774]
[1725507186277,0.0540628,131.98,131.96,3.7888]
[1725507189380,0.0540628,131.98,131.97,3.7885]
[1725507190475,2.6634,132.05,131.99,3.7878]
[1725507190880,6.37608008,132.05,131.99,3.7878]
[1725507191180,3.7863,132.05,132.0,26.22]
[1725507191486,0.04998846,132.04,132.01,0.04888721]
[1725507191677,0.04998846,132.04,132.01,3.83608721]
[1725507191874,3.83648846,132.04,132.01,0.04888721]
[1725507192386,0.04998846,132.04,132.02,3.787]
[1725507192879,0.04998846,132.04,132.01,0.04888721]
[1725507193080,0.04998846,132.04,132.01,3.83608721]
[1725507193479,3.83648846,132.04,132.01,3.83608721]
[1725507193874,0.04998846,132.04,132.01,3.83608721]
[1725507194080,3.7868,132.03,132.01,0.04888721]
[1725507194287,0.04998846,132.04,132.01,0.04888721]
[1725507195177,3.7869,132.03,132.01,0.04888721]
[1725507195390,0.04998846,132.04,132.01,0.04888721]
[1725507195592,3.7871,132.02,132.01,0.04888721]
[1725507196686,3.7869,132.03,132.01,0.04888721]
[1725507197183,0.04998846,132.04,132.01,0.04888721]
[1725507198387,3.83658846,132.04,132.01,3.83618721]
[1725507199095,3.83658846,132.04,132.01,0.04888721]
[1725507199592,3.7869,132.03,132.01,0.04888721]
[1725507199988,3.83658846,132.04,132.01,0.04888721]
[1725507200993,0.04998846,132.04,132.01,0.04888721]
[1725507201490,3.7888,131.96,131.91,7.52096266]
[1725507201698,29.92804773,131.99,131.89,1.3003]
[1725507201892,26.22,131.97,131.89,5.17503562]
[1725507202191,26.22,131.97,131.9,3.7904]
[1725507202192,3.7891,131.96,131.9,3.7904]
[1725507202384,3.7891,131.96,131.89,1.3003]
[1725507202385,30.06291338,131.97,131.89,5.1591245]
[1725507202585,30.06291338,131.97,131.89,1.3003]
[1725507202791,0.04962047,131.94,131.92,0.0533599]
[1725507203286,3.7897,131.93,131.92,0.0533599]
[1725507203489,0.04962047,131.94,131.92,0.0533599]
[1725507203889,3.7896,131.93,131.92,0.0533599]
[1725507205295,3.83902047,131.94,131.92,0.0533599]
[1725507205494,0.04962047,131.94,131.92,0.0533599]
[1725507205698,3.7896,131.93,131.92,0.0533599]
[1725507210608,0.04962047,131.94,131.81,1.3651]
[1725507210609,3.7912,131.88,131.82,32.78]
[1725507210803,32.78,131.94,131.83,3.75559262]
[1725507211306,3.7911,131.89,131.84,3.7921]
[1725507211703,0.05613802,131.88,131.85,0.05688333]
[1725507212306,3.7916,131.87,131.85,0.05688333]
[1725507212907,3.7917,131.86,131.85,0.05688333]
[1725507217818,3.7928,131.82,131.79,3.7934]
[1725507218018,3.7928,131.82,131.78,32.78]
[1725507218218,3.7928,131.82,131.78,3.7937]
[1725507218720,32.78,131.86,131.77,3.7941]
[1725507218920,32.78,131.86,131.8,0.05455925]
[1725507218921,0.0503565,131.83,131.8,0.05455925]
[1725507219115,3.86569836,131.82,131.8,0.05455925]
[1725507219315,3.7933,131.81,131.8,0.05455925]
[1725507225822,3.7943,131.77,131.73,26.24]
[1725507226219,3.7943,131.77,131.73,30.0351]
[1725507226625,3.7941,131.78,131.71,27.5854]
[1725507227030,3.7941,131.78,131.73,0.05465908]
[1725507227031,0.05248998,131.76,131.73,0.05465908]
[1725507227328,0.05248998,131.76,131.74,3.7949]
[1725507228628,0.05248998,131.76,131.73,0.05465908]
[1725507229125,0.05248998,131.76,131.74,3.7951]
[1725507229526,0.05248998,131.76,131.73,0.05465908]
[1725507230027,0.05248998,131.76,131.74,3.7951]
[1725507231122,0.05248998,131.76,131.75,3.7948]
[1725507235128,3.7935,131.8,131.77,3.7942]
[1725507235321,1.3025,131.87,131.78,3.7903287]
[1725507235525,27.5425,131.87,131.78,3.7903287]
[1725507235720,26.24,131.85,131.75,26.24]
[1725507236325,3.84245638,131.81,131.79,0.0563107]
[1725507237033,0.04915638,131.81,131.79,0.0563107]
[1725507238127,3.80452097,131.9,131.79,26.2963107]
[1725507238328,22.8,131.96,131.82,26.24]
[1725507238329,27.6224,131.94,131.82,26.24]
[1725507238627,26.24,131.92,131.84,3.7922]
[1725507238823,26.24,131.9,131.83,1.3968]
[1725507239022,26.24,131.9,131.82,26.24]
[1725507239230,0.05641596,131.87,131.85,0.05752417]
[1725507239430,3.94311247,131.87,131.85,0.05752417]
[1725507239635,0.05641596,131.87,131.85,0.05752417]
[1725507239824,3.8349695,131.87,131.85,0.05752417]
[1725507240024,3.84801596,131.87,131.85,0.05752417]
[1725507240328,3.80157798,131.87,131.85,0.05752417]
[1725507241534,3.7917,131.86,131.85,0.05752417]
[1725507241931,7.59297798,131.87,131.85,0.05752417]
[1725507244143,26.24,131.86,131.76,26.24]
[1725507244439,26.24,131.86,131.77,3.72970717]
[1725507244440,27.5794,131.86,131.77,3.72970717]
[1725507244734,27.5794,131.86,131.8,3.7934]
[1725507245337,0.05319852,131.84,131.82,0.05649237]
[1725507247139,0.05319852,131.84,131.82,3.84919237]
[1725507247938,0.05319852,131.84,131.82,0.05649237]
[1725507249034,0.05319852,131.84,131.82,3.84929237]
[1725507250340,3.84559852,131.84,131.82,0.05649237]
[1725507250851,0.05319852,131.84,131.82,3.84929237]
[1725507252145,0.05319852,131.84,131.83,3.7925]
[1725507252547,0.05319852,131.84,131.82,0.05649237]
[1725507253445,0.05319852,131.84,131.82,3.84919237]
[1725507253640,0.05319852,131.84,131.82,0.05649237]
[1725507255048,3.84549852,131.84,131.82,0.05649237]
[1725507256153,0.05319852,131.84,131.82,0.05649237]
[1725507257447,0.05319852,131.84,131.82,3.84919237]
[1725507259351,0.05319852,131.84,131.83,3.7925]
[1725507260057,0.05319852,131.84,131.82,0.05649237]
[1725507260247,0.05319852,131.84,131.82,3.84909237]
[1725507261751,0.05319852,131.84,131.83,3.7925]
[1725507262456,0.05319852,131.84,131.82,0.05649237]
[1725507262850,0.05319852,131.84,131.82,3.84919237]
[1725507264752,3.84549852,131.84,131.82,0.05649237]
[1725507265458,30.0325,131.83,131.82,0.05649237]
[1725507265654,26.24,131.83,131.75,1.3456]
[1725507265953,26.24,131.83,131.76,3.7943]
[1725507266360,26.24,131.83,131.75,1.3456]
[1725507266560,26.24,131.83,131.78,0.05708914]
[1725507266561,0.04873497,131.8,131.78,0.05708914]
[1725507267060,3.7939,131.79,131.78,0.05708914]
[1725507267657,7.56942569,131.79,131.78,0.05708914]
[1725507268658,3.7943,131.77,131.73,3.7953]